[Event "Titled Tuesday Blitz October 04 Late 2022"]
[White "Holt, Conrad"]
[Black "Tang, Andrew"]
[WhiteFideId "2034387"]
[BlackFideId "2059630"]
[WhiteElo "2592"]
[BlackElo "2581"]
[Result "1/2-1/2"]
[Round "09"]
[TimeControl "180+1"]
[Date "2022.10.04"]
[WhiteClock "0:00:05"]
[BlackClock "0:00:09"]

1. d4 {[%clk 0:02:42]}  d5 {[%clk 0:02:59]} 2. c4 {[%clk 0:02:42]}  e6 {[%clk 0:02:59]} 3. Nc3 {[%clk 0:02:42]}  Be7 {[%clk 0:03:00]} 4. Nf3 {[%clk 0:02:40]}  Nf6 {[%clk 0:02:59]} 5. Bf4 {[%clk 0:02:40]}  O-O {[%clk 0:02:59]} 6. e3 {[%clk 0:02:40]}  b6 {[%clk 0:02:59]} 7. Be2 {[%clk 0:02:38]}  c5 {[%clk 0:02:56]} 8. cxd5 {[%clk 0:02:35]}  Nxd5 {[%clk 0:02:50]} 9. Nxd5 {[%clk 0:02:35]}  exd5 {[%clk 0:02:51]} 10. O-O {[%clk 0:02:35]}  Nc6 {[%clk 0:02:52]} 11. b3 {[%clk 0:02:34]}  Be6 {[%clk 0:02:45]} 12. Rc1 {[%clk 0:02:27]}  a6 {[%clk 0:02:14]} 13. Qd2 {[%clk 0:02:18]}  h6 {[%clk 0:02:07]} 14. Rfd1 {[%clk 0:02:16]}  Qd7 {[%clk 0:02:04]} 15. h3 {[%clk 0:02:09]}  Rfc8 {[%clk 0:02:01]} 16. Bd3 {[%clk 0:02:04]}  Qa7 {[%clk 0:01:47]} 17. dxc5 {[%clk 0:01:58]}  bxc5 {[%clk 0:01:41]} 18. e4 {[%clk 0:01:58]}  d4 {[%clk 0:01:36]} 19. e5 {[%clk 0:01:53]}  Bf8 {[%clk 0:01:33]} 20. Be4 {[%clk 0:01:52]}  Qd7 {[%clk 0:01:22]} 21. Qc2 {[%clk 0:01:39]}  a5 {[%clk 0:01:18]} 22. Nd2 {[%clk 0:01:26]}  a4 {[%clk 0:01:11]} 23. Nc4 {[%clk 0:01:26]}  axb3 {[%clk 0:01:08]} 24. axb3 {[%clk 0:01:27]}  Rab8 {[%clk 0:01:03]} 25. Qd3 {[%clk 0:01:13]}  Kh8 {[%clk 0:00:39]} 26. Qf3 {[%clk 0:01:10]}  Nb4 {[%clk 0:00:30]} 27. Rd2 {[%clk 0:01:04]}  Nd5 {[%clk 0:00:21]} 28. Bg3 {[%clk 0:00:56]}  Rd8 {[%clk 0:00:14]} 29. Bc2 {[%clk 0:00:52]}  Nc3 {[%clk 0:00:12]} 30. Qd3 {[%clk 0:00:50]}  g6 {[%clk 0:00:12]} 31. Bh4 {[%clk 0:00:50]}  Be7 {[%clk 0:00:12]} 32. Qg3 {[%clk 0:00:45]}  Bxc4 {[%clk 0:00:08]} 33. bxc4 {[%clk 0:00:43]}  Qe6 {[%clk 0:00:06]} 34. Bxe7 {[%clk 0:00:39]}  Qxe7 {[%clk 0:00:07]} 35. h4 {[%clk 0:00:39]}  Rb6 {[%clk 0:00:05]} 36. Re1 {[%clk 0:00:36]}  Re8 {[%clk 0:00:05]} 37. h5 {[%clk 0:00:34]}  gxh5 {[%clk 0:00:04]} 38. Qf3 {[%clk 0:00:33]}  Rg8 {[%clk 0:00:03]} 39. Qf5 {[%clk 0:00:29]}  Rg7 {[%clk 0:00:03]} 40. Ra1 {[%clk 0:00:15]}  Rb8 {[%clk 0:00:03]} 41. Ra6 {[%clk 0:00:14]}  Qg5 {[%clk 0:00:03]} 42. Qxg5 {[%clk 0:00:10]}  hxg5 {[%clk 0:00:04]} 43. Rh6+ {[%clk 0:00:10]}  Kg8 {[%clk 0:00:05]} 44. Rxh5 {[%clk 0:00:11]}  Re8 {[%clk 0:00:05]} 45. f4 {[%clk 0:00:07]}  gxf4 {[%clk 0:00:06]} 46. Kf1 {[%clk 0:00:06]}  Rg3 {[%clk 0:00:04]} 47. Bd3 {[%clk 0:00:05]}  Re3 {[%clk 0:00:04]} 48. Rh4 {[%clk 0:00:04]}  R8xe5 {[%clk 0:00:04]} 49. Rg4+ {[%clk 0:00:04]}  Kf8 {[%clk 0:00:04]} 50. Rxf4 {[%clk 0:00:05]}  Re1+ {[%clk 0:00:05]} 51. Kf2 {[%clk 0:00:06]}  Nd1+ {[%clk 0:00:05]} 52. Kg3 {[%clk 0:00:06]}  R1e3+ {[%clk 0:00:05]} 53. Rf3 {[%clk 0:00:06]}  Nb2 {[%clk 0:00:04]} 54. Bf1 {[%clk 0:00:05]}  Rxf3+ {[%clk 0:00:03]} 55. Kxf3 {[%clk 0:00:06]}  Re3+ {[%clk 0:00:04]} 56. Kf4 {[%clk 0:00:06]}  Na4 {[%clk 0:00:04]} 57. Be2 {[%clk 0:00:05]}  Nc3 {[%clk 0:00:05]} 58. Bd3 {[%clk 0:00:06]}  Ke7 {[%clk 0:00:05]} 59. Kf5 {[%clk 0:00:05]}  Re6 {[%clk 0:00:05]} 60. Rb2 {[%clk 0:00:05]}  Rf6+ {[%clk 0:00:04]} 61. Ke5 {[%clk 0:00:05]}  Re6+ {[%clk 0:00:05]} 62. Kf5 {[%clk 0:00:04]}  Nd1 {[%clk 0:00:06]} 63. Rb7+ {[%clk 0:00:04]}  Kf8 {[%clk 0:00:06]} 64. Rc7 {[%clk 0:00:03]}  Nf2 {[%clk 0:00:07]} 65. Bc2 {[%clk 0:00:03]}  d3 {[%clk 0:00:06]} 66. Bb3 {[%clk 0:00:03]}  d2 {[%clk 0:00:07]} 67. Rd7 {[%clk 0:00:03]}  Re2 {[%clk 0:00:04]} 68. g3 {[%clk 0:00:02]}  Ke8 {[%clk 0:00:04]} 69. Rd5 {[%clk 0:00:02]}  Ke7 {[%clk 0:00:05]} 70. Kf4 {[%clk 0:00:02]}  Nh3+ {[%clk 0:00:03]} 71. Kf3 {[%clk 0:00:03]}  Ng1+ {[%clk 0:00:04]} 72. Kf4 {[%clk 0:00:03]}  Ke6 {[%clk 0:00:03]} 73. Bd1 {[%clk 0:00:03]}  Rh2 {[%clk 0:00:02]} 74. Bg4+ {[%clk 0:00:04]}  Kf6 {[%clk 0:00:03]} 75. Ke3 {[%clk 0:00:03]}  Rg2 {[%clk 0:00:03]} 76. Rxd2 {[%clk 0:00:02]}  Rxg3+ {[%clk 0:00:04]} 77. Kf4 {[%clk 0:00:03]}  Rc3 {[%clk 0:00:04]} 78. Rf2 {[%clk 0:00:03]}  Rxc4+ {[%clk 0:00:04]} 79. Kg3+ {[%clk 0:00:03]}  Kg5 {[%clk 0:00:04]} 80. Rf5+ {[%clk 0:00:03]}  Kg6 {[%clk 0:00:05]} 81. Rf1 {[%clk 0:00:04]}  Kg5 {[%clk 0:00:02]} 82. Rf5+ {[%clk 0:00:04]}  Kh6 {[%clk 0:00:02]} 83. Rf1 {[%clk 0:00:04]}  Rc3+ {[%clk 0:00:03]} 84. Kg2 {[%clk 0:00:04]}  Kg5 {[%clk 0:00:03]} 85. Bc8 {[%clk 0:00:03]}  Ne2 {[%clk 0:00:04]} 86. Rxf7 {[%clk 0:00:03]}  Nf4+ {[%clk 0:00:04]} 87. Kf2 {[%clk 0:00:03]}  Nd3+ {[%clk 0:00:03]} 88. Ke2 {[%clk 0:00:03]}  Nf4+ {[%clk 0:00:04]} 89. Kd2 {[%clk 0:00:04]}  Rc4 {[%clk 0:00:03]} 90. Rf5+ {[%clk 0:00:04]}  Kg6 {[%clk 0:00:04]} 91. Rf8 {[%clk 0:00:04]}  Kg7 {[%clk 0:00:04]} 92. Re8 {[%clk 0:00:05]}  Kf7 {[%clk 0:00:05]} 93. Re1 {[%clk 0:00:06]}  Kf6 {[%clk 0:00:04]} 94. Ba6 {[%clk 0:00:06]}  Rd4+ {[%clk 0:00:05]} 95. Kc2 {[%clk 0:00:06]}  Nd5 {[%clk 0:00:05]} 96. Rf1+ {[%clk 0:00:07]}  Ke5 {[%clk 0:00:06]} 97. Kb3 {[%clk 0:00:07]}  Rb4+ {[%clk 0:00:06]} 98. Kc2 {[%clk 0:00:08]}  Ne3+ {[%clk 0:00:06]} 99. Kc3 {[%clk 0:00:07]}  Nxf1 {[%clk 0:00:06]} 100. Bxf1 {[%clk 0:00:07]}  Rf4 {[%clk 0:00:07]} 101. Bb5 {[%clk 0:00:06]}  Rf3+ {[%clk 0:00:07]} 102. Kc4 {[%clk 0:00:06]}  Kd6 {[%clk 0:00:08]} 103. Ba6 {[%clk 0:00:07]}  Rf4+ {[%clk 0:00:08]} 104. Kc3 {[%clk 0:00:07]}  Kc6 {[%clk 0:00:08]} 105. Be2 {[%clk 0:00:07]}  Kb6 {[%clk 0:00:08]} 106. Bh5 {[%clk 0:00:07]}  c4 {[%clk 0:00:08]} 107. Kb4 {[%clk 0:00:06]}  Kc6 {[%clk 0:00:07]} 108. Be8+ {[%clk 0:00:05]}  Kd5 {[%clk 0:00:07]} 109. Bb5 {[%clk 0:00:04]}  Rh4 {[%clk 0:00:07]} 110. Ba6 {[%clk 0:00:04]}  Rf4 {[%clk 0:00:06]} 111. Bb5 {[%clk 0:00:05]}  Re4 {[%clk 0:00:05]} 112. Ba6 {[%clk 0:00:05]}  Rd4 {[%clk 0:00:05]} 113. Bb5 {[%clk 0:00:05]}  Rg4 {[%clk 0:00:05]} 114. Ba6 {[%clk 0:00:05]}  Kd4 {[%clk 0:00:05]} 115. Bxc4 {[%clk 0:00:05]}  Rg1 {[%clk 0:00:06]} 116. Be6 {[%clk 0:00:04]}  Rb1+ {[%clk 0:00:05]} 117. Ka3 {[%clk 0:00:05]}  Kc3 {[%clk 0:00:05]} 118. Ka2 {[%clk 0:00:05]}  Rb6 {[%clk 0:00:05]} 119. Bf7 {[%clk 0:00:05]}  Rf6 {[%clk 0:00:05]} 120. Bg8 {[%clk 0:00:05]}  Ra6+ {[%clk 0:00:04]} 121. Kb1 {[%clk 0:00:05]}  Rb6+ {[%clk 0:00:05]} 122. Ka1 {[%clk 0:00:05]}  Rb8 {[%clk 0:00:05]} 123. Bd5 {[%clk 0:00:05]}  Kc2 {[%clk 0:00:05]} 124. Be4+ {[%clk 0:00:05]}  Kb3 {[%clk 0:00:05]} 125. Bd5+ {[%clk 0:00:05]}  Ka3 {[%clk 0:00:05]} 126. Be4 {[%clk 0:00:06]}  Re8 {[%clk 0:00:06]} 127. Bf5 {[%clk 0:00:06]}  Re2 {[%clk 0:00:05]} 128. Bg6 {[%clk 0:00:06]}  Kb3 {[%clk 0:00:05]} 129. Bf7+ {[%clk 0:00:06]}  Kc2 {[%clk 0:00:05]} 130. Bg6+ {[%clk 0:00:05]}  Kc3 {[%clk 0:00:06]} 131. Bf7 {[%clk 0:00:05]}  Re7 {[%clk 0:00:07]} 132. Bg6 {[%clk 0:00:05]}  Re6 {[%clk 0:00:07]} 133. Bf7 {[%clk 0:00:05]}  Rf6 {[%clk 0:00:08]} 134. Be8 {[%clk 0:00:04]}  Rf4 {[%clk 0:00:06]} 135. Kb1 {[%clk 0:00:04]}  Rb4+ {[%clk 0:00:06]} 136. Ka2 {[%clk 0:00:05]}  Rb2+ {[%clk 0:00:06]} 137. Ka1 {[%clk 0:00:05]}  Rb8 {[%clk 0:00:05]} 138. Bd7 {[%clk 0:00:04]}  Rd8 {[%clk 0:00:06]} 139. Be6 {[%clk 0:00:04]}  Rb8 {[%clk 0:00:06]} 140. Bf5 {[%clk 0:00:04]}  Kb3 {[%clk 0:00:06]} 141. Kb1 {[%clk 0:00:04]}  Rf8 {[%clk 0:00:05]} 142. Be6+ {[%clk 0:00:04]}  Ka3 {[%clk 0:00:05]} 143. Kc2 {[%clk 0:00:03]}  Kb4 {[%clk 0:00:06]} 144. Bd5 {[%clk 0:00:03]}  Kc5 {[%clk 0:00:06]} 145. Be4 {[%clk 0:00:03]}  Kd4 {[%clk 0:00:06]} 146. Bg6 {[%clk 0:00:04]}  Rf2+ {[%clk 0:00:05]} 147. Kb3 {[%clk 0:00:04]}  Rf6 {[%clk 0:00:06]} 148. Be8 {[%clk 0:00:04]}  Rb6+ {[%clk 0:00:06]} 149. Kc2 {[%clk 0:00:05]}  Ra6 {[%clk 0:00:06]} 150. Bf7 {[%clk 0:00:05]}  Ra3 {[%clk 0:00:06]} 151. Be8 {[%clk 0:00:05]}  Rc3+ {[%clk 0:00:06]} 152. Kb2 {[%clk 0:00:06]}  Kc4 {[%clk 0:00:07]} 153. Bf7+ {[%clk 0:00:05]}  Kb4 {[%clk 0:00:07]} 154. Bg6 {[%clk 0:00:06]}  Re3 {[%clk 0:00:07]} 155. Bf5 {[%clk 0:00:06]}  Re2+ {[%clk 0:00:08]} 156. Ka1 {[%clk 0:00:07]}  Kb3 {[%clk 0:00:08]} 157. Bg6 {[%clk 0:00:05]}  Rf2 {[%clk 0:00:08]} 158. Bh7 {[%clk 0:00:05]}  Rf6 {[%clk 0:00:08]} 159. Bg8+ {[%clk 0:00:05]}  Kc2 {[%clk 0:00:08]} 160. Bh7+ {[%clk 0:00:06]}  Kc1 {[%clk 0:00:09]} 161. Ka2 {[%clk 0:00:06]}  Rb6 {[%clk 0:00:07]} 162. Ka3 {[%clk 0:00:06]}  Rb7 {[%clk 0:00:08]} 163. Be4 {[%clk 0:00:06]}  Re7 {[%clk 0:00:08]} 164. Bc6 {[%clk 0:00:06]}  Re5 {[%clk 0:00:09]} 165. Kb4 {[%clk 0:00:05]} 1/2-1/2


[Site "https://www.chess.com"]

[Event "Titled Tuesday Blitz October 04 Late 2022"]
[White "Indjic, Aleksandar"]
[Black "Vazquez, Guillermo"]
[WhiteFideId "911925"]
[BlackFideId "3702308"]
[WhiteElo "2592"]
[BlackElo "2543"]
[Result "1/2-1/2"]
[Round "09"]
[TimeControl "180+1"]
[Date "2022.10.04"]
[WhiteClock "0:00:24"]
[BlackClock "0:00:09"]

1. c4 {[%clk 0:03:00]}  b6 {[%clk 0:02:59]} 2. d4 {[%clk 0:02:57]}  Bb7 {[%clk 0:03:00]} 3. Nf3 {[%clk 0:02:54]}  e6 {[%clk 0:03:00]} 4. a3 {[%clk 0:02:53]}  f5 {[%clk 0:02:56]} 5. Bf4 {[%clk 0:02:52]}  Nf6 {[%clk 0:02:55]} 6. h3 {[%clk 0:02:51]}  Be7 {[%clk 0:02:50]} 7. e3 {[%clk 0:02:51]}  O-O {[%clk 0:02:50]} 8. Nc3 {[%clk 0:02:50]}  Ne4 {[%clk 0:02:50]} 9. Nxe4 {[%clk 0:02:49]}  Bxe4 {[%clk 0:02:51]} 10. Bd3 {[%clk 0:02:48]}  Nc6 {[%clk 0:02:32]} 11. Bh2 {[%clk 0:02:44]}  Bf6 {[%clk 0:02:20]} 12. Bxe4 {[%clk 0:02:38]}  fxe4 {[%clk 0:02:19]} 13. Nd2 {[%clk 0:02:39]}  d5 {[%clk 0:02:19]} 14. Rc1 {[%clk 0:02:31]}  Qd7 {[%clk 0:01:49]} 15. Qg4 {[%clk 0:02:25]}  Nxd4 {[%clk 0:01:16]} 16. exd4 {[%clk 0:02:23]}  Bxd4 {[%clk 0:01:16]} 17. O-O {[%clk 0:02:22]}  Rf7 {[%clk 0:01:05]} 18. Rc2 {[%clk 0:02:06]}  c5 {[%clk 0:01:01]} 19. b4 {[%clk 0:01:41]}  Raf8 {[%clk 0:00:59]} 20. Bg3 {[%clk 0:01:37]}  Qa4 {[%clk 0:00:56]} 21. Rcc1 {[%clk 0:01:20]}  Qxa3 {[%clk 0:00:55]} 22. Qxe6 {[%clk 0:01:18]}  Qxg3 {[%clk 0:00:54]} 23. cxd5 {[%clk 0:01:10]}  Bxf2+ {[%clk 0:00:41]} 24. Kh1 {[%clk 0:01:09]}  e3 {[%clk 0:00:31]} 25. Ne4 {[%clk 0:01:08]}  Qg6 {[%clk 0:00:30]} 26. bxc5 {[%clk 0:01:07]}  bxc5 {[%clk 0:00:28]} 27. Nxf2 {[%clk 0:01:05]}  exf2 {[%clk 0:00:24]} 28. Qxg6 {[%clk 0:01:03]}  hxg6 {[%clk 0:00:24]} 29. Rxc5 {[%clk 0:01:03]}  Re7 {[%clk 0:00:20]} 30. g4 {[%clk 0:00:41]}  Re1 {[%clk 0:00:17]} 31. Kg2 {[%clk 0:00:41]}  Rxf1 {[%clk 0:00:18]} 32. Kxf1 {[%clk 0:00:40]}  Rf3 {[%clk 0:00:18]} 33. Rc8+ {[%clk 0:00:37]}  Kf7 {[%clk 0:00:15]} 34. Rc7+ {[%clk 0:00:37]}  Kf6 {[%clk 0:00:14]} 35. Rxa7 {[%clk 0:00:37]}  Rxh3 {[%clk 0:00:09]} 36. g5+ {[%clk 0:00:32]}  Kxg5 {[%clk 0:00:09]} 37. Rxg7 {[%clk 0:00:32]}  Rd3 {[%clk 0:00:09]} 38. Kxf2 {[%clk 0:00:26]}  Rxd5 {[%clk 0:00:09]} 39. Ra7 {[%clk 0:00:26]}  Kf5 {[%clk 0:00:09]} 40. Kf3 {[%clk 0:00:24]} 1/2-1/2


[Site "https://www.chess.com"]

[Event "Titled Tuesday Blitz October 04 Late 2022"]
[White "Kravtsiv, Martyn"]
[Black "Jobava, Baadur"]
[WhiteFideId "14113147"]
[BlackFideId "13601520"]
[WhiteElo "2694"]
[BlackElo "2582"]
[Result "0-1"]
[Round "09"]
[TimeControl "180+1"]
[Date "2022.10.04"]
[WhiteClock "0:00:01"]
[BlackClock "0:00:17"]

1. e4 {[%clk 0:03:00]}  d6 {[%clk 0:02:54]} 2. d4 {[%clk 0:03:00]}  Nf6 {[%clk 0:02:55]} 3. Nc3 {[%clk 0:03:00]}  e5 {[%clk 0:02:55]} 4. dxe5 {[%clk 0:02:55]}  dxe5 {[%clk 0:02:56]} 5. Qxd8+ {[%clk 0:02:55]}  Kxd8 {[%clk 0:02:57]} 6. Bg5 {[%clk 0:02:55]}  c6 {[%clk 0:02:57]} 7. O-O-O+ {[%clk 0:02:54]}  Kc7 {[%clk 0:02:56]} 8. Bc4 {[%clk 0:02:49]}  Bc5 {[%clk 0:02:52]} 9. f3 {[%clk 0:02:34]}  Rf8 {[%clk 0:02:52]} 10. Nge2 {[%clk 0:02:31]}  b5 {[%clk 0:02:49]} 11. Bb3 {[%clk 0:02:31]}  a5 {[%clk 0:02:47]} 12. a3 {[%clk 0:02:27]}  a4 {[%clk 0:02:45]} 13. Ba2 {[%clk 0:02:26]}  Nbd7 {[%clk 0:02:40]} 14. Ng3 {[%clk 0:02:21]}  h6 {[%clk 0:02:38]} 15. Bd2 {[%clk 0:02:20]}  Nb6 {[%clk 0:02:36]} 16. Nf5 {[%clk 0:02:18]}  Bxf5 {[%clk 0:02:36]} 17. exf5 {[%clk 0:02:19]}  Rad8 {[%clk 0:02:31]} 18. Rhe1 {[%clk 0:02:18]}  Bd4 {[%clk 0:02:17]} 19. f4 {[%clk 0:01:50]}  Nbd7 {[%clk 0:01:19]} 20. Ne2 {[%clk 0:01:18]}  Bf2 {[%clk 0:01:19]} 21. Rf1 {[%clk 0:01:17]}  Bb6 {[%clk 0:01:19]} 22. fxe5 {[%clk 0:01:12]}  Nxe5 {[%clk 0:01:12]} 23. Bf4 {[%clk 0:01:07]}  Ng4 {[%clk 0:01:12]} 24. Kb1 {[%clk 0:00:51]}  f6 {[%clk 0:01:11]} 25. Be6 {[%clk 0:00:36]}  Ne3 {[%clk 0:00:47]} 26. Bxe3 {[%clk 0:00:36]}  Bxe3 {[%clk 0:00:48]} 27. Ng3 {[%clk 0:00:36]}  Rde8 {[%clk 0:00:38]} 28. Ne4 {[%clk 0:00:19]}  Re7 {[%clk 0:00:34]} 29. h3 {[%clk 0:00:17]}  h5 {[%clk 0:00:32]} 30. b3 {[%clk 0:00:14]}  axb3 {[%clk 0:00:32]} 31. cxb3 {[%clk 0:00:13]}  h4 {[%clk 0:00:32]} 32. Kb2 {[%clk 0:00:12]}  g6 {[%clk 0:00:30]} 33. Rfe1 {[%clk 0:00:09]}  gxf5 {[%clk 0:00:31]} 34. Bxf5 {[%clk 0:00:08]}  Bb6 {[%clk 0:00:28]} 35. Re2 {[%clk 0:00:09]}  Rg7 {[%clk 0:00:27]} 36. Kc2 {[%clk 0:00:09]}  Rfg8 {[%clk 0:00:25]} 37. Rdd2 {[%clk 0:00:09]}  Rf8 {[%clk 0:00:23]} 38. Nd6 {[%clk 0:00:07]}  Bc5 {[%clk 0:00:21]} 39. Ne4 {[%clk 0:00:06]}  Bxa3 {[%clk 0:00:21]} 40. Rd1 {[%clk 0:00:06]}  Bb4 {[%clk 0:00:21]} 41. Ra1 {[%clk 0:00:06]}  Kb6 {[%clk 0:00:21]} 42. Ra2 {[%clk 0:00:03]}  Be7 {[%clk 0:00:19]} 43. Kc3 {[%clk 0:00:02]}  Rfg8 {[%clk 0:00:19]} 44. Red2 {[%clk 0:00:01]}  b4+ {[%clk 0:00:18]} 45. Kd4 {[%clk 0:00:01]}  Rd8+ {[%clk 0:00:16]} 46. Ke3 {[%clk 0:00:01]}  Rxd2 {[%clk 0:00:16]} 47. Rxd2 {[%clk 0:00:01]}  Bc5+ {[%clk 0:00:17]} 0-1


[Site "https://www.chess.com"]

[Event "Titled Tuesday Blitz October 04 Late 2022"]
[White "Maksimovic, Bojan"]
[Black "Sarana, Alexey"]
[WhiteFideId "14408120"]
[BlackFideId "24133795"]
[WhiteElo "2447"]
[BlackElo "2689"]
[Result "0-1"]
[Round "09"]
[TimeControl "180+1"]
[Date "2022.10.04"]
[WhiteClock "0:00:03"]
[BlackClock "0:00:22"]

1. e4 {[%clk 0:03:00]}  c5 {[%clk 0:03:00]} 2. Nf3 {[%clk 0:03:01]}  d6 {[%clk 0:03:00]} 3. d4 {[%clk 0:03:01]}  cxd4 {[%clk 0:03:01]} 4. Nxd4 {[%clk 0:03:02]}  Nf6 {[%clk 0:03:02]} 5. Nc3 {[%clk 0:03:03]}  a6 {[%clk 0:03:03]} 6. Be2 {[%clk 0:03:03]}  e5 {[%clk 0:03:03]} 7. Nb3 {[%clk 0:03:04]}  Be7 {[%clk 0:03:02]} 8. O-O {[%clk 0:03:04]}  O-O {[%clk 0:03:03]} 9. Qd3 {[%clk 0:03:05]}  Be6 {[%clk 0:03:01]} 10. Bd2 {[%clk 0:03:05]}  Qc8 {[%clk 0:03:01]} 11. Nd5 {[%clk 0:03:04]}  Nxd5 {[%clk 0:03:01]} 12. exd5 {[%clk 0:03:02]}  Bf5 {[%clk 0:03:00]} 13. Qe3 {[%clk 0:03:03]}  Nd7 {[%clk 0:02:42]} 14. c4 {[%clk 0:03:00]}  h6 {[%clk 0:02:30]} 15. Qg3 {[%clk 0:02:49]}  Bg6 {[%clk 0:02:24]} 16. Rac1 {[%clk 0:02:38]}  Nf6 {[%clk 0:02:20]} 17. Bd3 {[%clk 0:02:03]}  Nh5 {[%clk 0:02:09]} 18. Qf3 {[%clk 0:01:55]}  f5 {[%clk 0:02:09]} 19. Qe2 {[%clk 0:01:52]}  b6 {[%clk 0:01:58]} 20. Nd4 {[%clk 0:01:52]}  Bg5 {[%clk 0:01:44]} 21. Bxg5 {[%clk 0:01:29]}  hxg5 {[%clk 0:01:43]} 22. Ne6 {[%clk 0:00:46]}  Nf4 {[%clk 0:01:43]} 23. Qd2 {[%clk 0:00:47]}  Nxe6 {[%clk 0:01:38]} 24. dxe6 {[%clk 0:00:48]}  Qxe6 {[%clk 0:01:38]} 25. Qxg5 {[%clk 0:00:47]}  e4 {[%clk 0:01:38]} 26. Be2 {[%clk 0:00:46]}  f4 {[%clk 0:01:35]} 27. Bg4 {[%clk 0:00:40]}  Bf5 {[%clk 0:01:31]} 28. Bxf5 {[%clk 0:00:36]}  Rxf5 {[%clk 0:01:32]} 29. Qg4 {[%clk 0:00:37]}  Qf6 {[%clk 0:01:21]} 30. Rfe1 {[%clk 0:00:31]}  Re8 {[%clk 0:01:16]} 31. b3 {[%clk 0:00:31]}  Ree5 {[%clk 0:01:11]} 32. Rcd1 {[%clk 0:00:27]}  Rg5 {[%clk 0:01:03]} 33. Qc8+ {[%clk 0:00:27]}  Kh7 {[%clk 0:01:02]} 34. Qd7 {[%clk 0:00:14]}  Qg6 {[%clk 0:00:58]} 35. g3 {[%clk 0:00:13]}  fxg3 {[%clk 0:00:58]} 36. fxg3 {[%clk 0:00:13]}  Rxg3+ {[%clk 0:00:50]} 37. Kh1 {[%clk 0:00:13]}  e3 {[%clk 0:00:33]} 38. Qb7 {[%clk 0:00:02]}  Rh5 {[%clk 0:00:30]} 39. Re2 {[%clk 0:00:02]}  d5 {[%clk 0:00:23]} 40. Qe7 {[%clk 0:00:03]}  Qg4 {[%clk 0:00:22]} 41. Rde1 {[%clk 0:00:03]}  Qf3+ {[%clk 0:00:22]} 0-1


[Site "https://www.chess.com"]

[Event "Titled Tuesday Blitz October 04 Late 2022"]
[White "Morefield, Jason"]
[Black "Ivanisevic, Ivan"]
[WhiteFideId "30920825"]
[BlackFideId "912417"]
[WhiteElo "2171"]
[BlackElo "2582"]
[Result "1-0"]
[Round "09"]
[TimeControl "180+1"]
[Date "2022.10.04"]
[WhiteClock "0:00:11"]
[BlackClock "0:00:01"]

1. d4 {[%clk 0:03:00]}  Nf6 {[%clk 0:02:59]} 2. c4 {[%clk 0:03:01]}  c5 {[%clk 0:02:59]} 3. d5 {[%clk 0:03:01]}  e6 {[%clk 0:03:00]} 4. Nc3 {[%clk 0:03:01]}  exd5 {[%clk 0:03:00]} 5. cxd5 {[%clk 0:03:02]}  d6 {[%clk 0:03:00]} 6. Nf3 {[%clk 0:03:03]}  g6 {[%clk 0:03:01]} 7. Nd2 {[%clk 0:03:03]}  Bg7 {[%clk 0:02:57]} 8. e4 {[%clk 0:03:04]}  O-O {[%clk 0:02:57]} 9. Be2 {[%clk 0:03:04]}  Re8 {[%clk 0:02:57]} 10. O-O {[%clk 0:03:04]}  Nbd7 {[%clk 0:02:58]} 11. a4 {[%clk 0:03:04]}  Ne5 {[%clk 0:02:57]} 12. Ra3 {[%clk 0:02:59]}  g5 {[%clk 0:02:39]} 13. Re1 {[%clk 0:02:58]}  Ng6 {[%clk 0:02:30]} 14. Bf1 {[%clk 0:02:47]}  g4 {[%clk 0:02:23]} 15. Nc4 {[%clk 0:02:43]}  Nh5 {[%clk 0:02:21]} 16. Nb5 {[%clk 0:02:42]}  Bf8 {[%clk 0:02:11]} 17. a5 {[%clk 0:02:36]}  Ne5 {[%clk 0:02:02]} 18. Nxe5 {[%clk 0:02:15]}  Rxe5 {[%clk 0:02:03]} 19. g3 {[%clk 0:02:04]}  a6 {[%clk 0:01:48]} 20. Nc3 {[%clk 0:02:04]}  Bd7 {[%clk 0:01:48]} 21. Rb3 {[%clk 0:01:58]}  Qxa5 {[%clk 0:01:38]} 22. Rxb7 {[%clk 0:01:55]}  Bc8 {[%clk 0:01:36]} 23. Rb3 {[%clk 0:01:51]}  Bg7 {[%clk 0:01:33]} 24. Be2 {[%clk 0:01:29]}  f5 {[%clk 0:01:33]} 25. exf5 {[%clk 0:01:08]}  Bxf5 {[%clk 0:01:34]} 26. Be3 {[%clk 0:00:59]}  c4 {[%clk 0:00:27]} 27. Rb7 {[%clk 0:00:54]}  Bc8 {[%clk 0:00:16]} 28. Ra7 {[%clk 0:00:30]}  Rxa7 {[%clk 0:00:14]} 29. Bxa7 {[%clk 0:00:31]}  Qc7 {[%clk 0:00:10]} 30. Bd4 {[%clk 0:00:28]}  Re8 {[%clk 0:00:09]} 31. Bxg7 {[%clk 0:00:24]}  Qxg7 {[%clk 0:00:10]} 32. Bxc4 {[%clk 0:00:22]}  Rf8 {[%clk 0:00:09]} 33. Qd2 {[%clk 0:00:19]}  Nf6 {[%clk 0:00:09]} 34. Ne4 {[%clk 0:00:18]}  Nxe4 {[%clk 0:00:08]} 35. Rxe4 {[%clk 0:00:19]}  Bf5 {[%clk 0:00:08]} 36. Rf4 {[%clk 0:00:17]}  Qe5 {[%clk 0:00:07]} 37. Be2 {[%clk 0:00:17]}  Re8 {[%clk 0:00:07]} 38. Bxg4 {[%clk 0:00:16]}  Be4 {[%clk 0:00:06]} 39. Be6+ {[%clk 0:00:16]}  Kg7 {[%clk 0:00:06]} 40. Rf7+ {[%clk 0:00:15]}  Kh8 {[%clk 0:00:05]} 41. Qh6 {[%clk 0:00:14]}  Rg8 {[%clk 0:00:02]} 42. Qf6+ {[%clk 0:00:10]}  Qxf6 {[%clk 0:00:01]} 43. Rxf6 {[%clk 0:00:11]} 1-0


[Site "https://www.chess.com"]